bitfinex/quotes_ETHUSD_20250210
["timestamp","ask_amount","ask_price","bid_price","bid_amount"]
[1739206125366,7.29139151,2663.3,2662.8,0.7904]
[1739206125367,3.75488,2663.2,2662.8,0.7904]
[1739206125588,3.75503,2663.1,2662.9,0.07934893]
[1739206125901,3.53655151,2663.3,2662.4,0.7904]
[1739206126113,4.3046,2663.4,2663.0,0.07923947]
[1739206126313,3.66155828,2663.6,2663.0,0.07923947]
[1739206126513,3.75483,2663.3,2663.0,0.07923947]
[1739206126879,3.66155828,2663.6,2663.0,0.07923947]
[1739206126880,3.75502,2663.1,2663.0,0.07923947]
[1739206127079,3.75502,2663.1,2662.6,8.30169]
[1739206127418,4.30501,2663.2,2662.6,4.54604]
[1739206127627,3.75466,2663.4,2662.8,3.75542]
[1739206127788,3.7548,2663.3,2662.8,3.75542]
[1739206127973,3.7548,2663.3,2662.9,0.07934893]
[1739206128179,3.75466,2663.4,2662.9,0.07934893]
[1739206128398,3.75466,2663.4,2663.0,0.7904]
[1739206128592,3.75466,2663.4,2663.0,0.86963947]
[1739206128822,3.75466,2663.4,2663.0,4.62479947]
[1739206129426,4.30445,2663.5,2663.0,4.62479947]
[1739206129718,3.75462,2663.4,2663.0,0.86963947]
[1739206130321,6.64024828,2663.6,2663.1,3.75497]
[1739206130506,3.75439,2663.6,2663.1,3.75497]
[1739206130709,0.55,2663.7,2663.2,3.83381524]
[1739206130911,4.30418,2663.7,2663.2,3.83381524]
[1739206131082,3.75418,2663.7,2663.2,3.83381524]
[1739206131287,3.75418,2663.7,2663.2,3.83374524]
[1739206131483,3.75433,2663.6,2663.2,3.83374524]
[1739206131684,3.75434,2663.6,2663.2,0.07895524]
[1739206131884,3.75458,2663.5,2663.0,4.54546]
[1739206132085,3.75434,2663.6,2663.3,0.0788458]
[1739206132284,3.75434,2663.6,2663.0,4.54546]
[1739206132485,0.55,2663.7,2663.4,0.07873637]
[1739206132685,0.55,2663.7,2663.2,3.7548]
[1739206132924,0.55,2663.7,2663.5,0.07862694]
[1739206133079,4.30424,2663.7,2663.2,3.7548]
[1739206133286,0.55,2663.7,2663.6,0.07851753]
[1739206133490,4.30417,2663.7,2663.2,3.7548]
[1739206133990,4.30417,2663.7,2663.3,0.0788458]
[1739206134209,4.30417,2663.7,2663.2,3.7548]
[1739206134384,2.88585828,2663.9,2663.4,0.07873637]
[1739206134581,6.63982828,2663.9,2663.0,0.7904]
[1739206134801,3.75408,2663.8,2663.3,3.7546]
[1739206135209,3.75408,2663.8,2663.4,0.07873637]
[1739206135519,6.63982828,2663.9,2663.4,0.07873637]
[1739206136024,3.75415,2663.8,2663.4,0.07873637]
[1739206136183,3.75403,2663.8,2663.4,0.07873637]
[1739206136785,3.75428,2663.7,2663.4,0.07873637]
[1739206136998,3.75428,2663.7,2663.2,3.75483]
[1739206137185,3.75428,2663.7,2663.5,0.07862694]
[1739206137390,6.63983828,2663.9,2663.1,3.75495]
[1739206137593,3.75406,2663.8,2663.3,3.75469]
[1739206138230,3.75406,2663.8,2663.4,0.07873637]
[1739206139535,0.75845737,2664.0,2663.6,3.75424]
[1739206139739,0.75845737,2664.0,2663.6,3.75419]
[1739206139934,0.75845737,2664.0,2663.7,0.07840812]
[1739206140416,3.75391,2663.9,2663.5,4.54472]
[1739206140618,3.75391,2663.9,2663.8,0.07829872]
[1739206140801,3.75424,2663.7,2663.2,4.52305]
[1739206141001,3.75424,2663.7,2663.3,3.75472]
[1739206141302,4.57978,2663.9,2663.3,3.75472]
[1739206141505,3.7541,2663.8,2663.3,3.75472]
[1739206141701,3.7541,2663.8,2663.3,3.75466]
[1739206141902,4.57978,2663.9,2663.4,3.75457]
[1739206142240,3.75404,2663.8,2663.2,0.7682]
[1739206142538,3.75404,2663.8,2663.3,3.75463]
[1739206142841,7.50819,2663.8,2663.3,3.75463]
[1739206143244,4.57971,2663.9,2663.2,4.52296]
[1739206143543,3.75391,2663.9,2663.4,7.50899]
[1739206143902,0.55,2663.9,2663.5,3.75445]
[1739206144541,0.8258,2664.1,2663.6,0.7682]
[1739206144726,2.88585828,2664.2,2663.6,0.7682]
[1739206144727,3.75348,2664.2,2663.7,3.75415]
[1739206144928,3.75361,2664.1,2663.6,4.52251]
[1739206145128,3.75361,2664.1,2663.8,0.07798461]
[1739206145333,7.50736,2664.1,2663.7,0.07809401]
[1739206145640,3.75361,2664.1,2663.8,0.07798461]
[1739206145799,7.50735,2664.1,2663.6,4.52244]
[1739206146137,3.75377,2664.0,2663.9,0.07787522]
[1739206146345,3.75377,2664.0,2663.6,4.52244]
[1739206146542,3.75361,2664.1,2663.9,0.07787522]
[1739206146842,2.88585828,2664.2,2664.0,0.07776584]
[1739206147005,0.8258,2664.7,2664.3,3.75331]
[1739206147209,0.8258,2664.7,2664.3,7.5065]
[1739206147506,5.2894478,2664.9,2664.4,0.07727242]
[1739206147507,6.98194952,2664.9,2664.4,0.07727242]
[1739206148115,3.75304,2664.6,2664.1,4.5217]
[1739206148640,3.75287,2664.7,2664.2,0.07749113]
[1739206148855,7.50571,2664.7,2664.2,0.07749113]
[1739206149162,3.75285,2664.7,2664.2,0.07749113]
[1739206149319,9.8677978,2664.9,2664.2,3.83095113]
[1739206149640,9.8677978,2664.9,2664.2,3.83086113]
[1739206149641,3.7527,2664.8,2664.2,3.83086113]
[1739206149810,9.8677678,2664.9,2664.3,3.75333]
[1739206150149,9.8677678,2664.9,2664.4,0.07727242]
[1739206150349,3.75267,2664.8,2664.4,0.07727242]
[1739206151244,3.75277,2664.7,2664.4,0.07727242]
[1739206151547,3.75277,2664.7,2664.1,8.27522]
[1739206151548,3.75277,2664.7,2664.2,3.75346]
[1739206151747,3.75277,2664.7,2664.5,0.07716308]
[1739206151942,3.75277,2664.7,2664.2,3.75346]
[1739206152147,3.75277,2664.7,2664.6,0.07705375]
[1739206152422,3.75277,2664.7,2664.1,4.52169]
[1739206152423,9.8677678,2664.9,2664.1,4.52169]
[1739206152582,3.75264,2664.8,2664.6,0.07705375]
[1739206152876,3.75262,2664.8,2664.7,0.07694442]
[1739206153034,3.75262,2664.8,2664.2,3.75347]
[1739206153225,3.75262,2664.8,2664.3,0.07738177]
[1739206153429,3.75262,2664.8,2664.2,3.75347]
[1739206153626,3.75262,2664.8,2664.3,0.07738177]
[1739206153882,3.75262,2664.8,2664.3,3.75331]
[1739206154042,3.75267,2664.8,2664.4,0.07727242]
[1739206154981,3.75252,2664.9,2664.5,3.75304]
[1739206155188,0.7774,2665.5,2665.1,3.75212]
[1739206155475,4.52912,2665.5,2665.0,3.75234]
[1739206155674,3.75179,2665.4,2665.1,0.07594152]
[1739206155976,3.75172,2665.5,2665.1,0.07594152]
[1739206156213,3.75178,2665.4,2665.1,0.07594152]
[1739206156559,3.75191,2665.4,2664.9,0.8168]
[1739206156769,3.75178,2665.4,2665.2,0.07583224]
[1739206157105,3.75192,2665.3,2664.9,0.8168]
[1739206158785,3.75172,2665.5,2664.9,0.8168]
[1739206158786,7.50349,2665.5,2664.9,4.56921]
[1739206159102,7.50349,2665.5,2665.1,0.8168]
[1739206159293,3.7518,2665.4,2665.1,0.8168]
[1739206159504,3.75192,2665.3,2665.1,0.8168]
[1739206160209,3.75192,2665.3,2665.2,0.07583224]
[1739206160503,7.50348,2665.5,2665.2,0.07583224]
[1739206160710,3.75172,2665.5,2665.2,0.07583224]
[1739206161004,4.6746331,2665.9,2665.2,0.07583224]
[1739206161005,0.9235331,2665.9,2665.2,0.07583224]
[1739206161179,3.8972931,2665.9,2665.4,3.75168]
[1739206161375,3.8972931,2665.9,2665.3,3.75183]
[1739206161694,3.75123,2665.8,2665.4,0.0756137]
[1739206162369,3.75136,2665.7,2665.4,0.0756137]
[1739206162770,7.50279,2665.7,2665.4,0.0756137]
[1739206162996,3.75136,2665.7,2665.4,0.0756137]
[1739206163269,3.75136,2665.7,2665.5,0.07550444]
[1739206163480,0.1461331,2665.9,2665.1,0.8168]
[1739206163715,0.1461331,2665.9,2665.7,4.52853]
[1739206163881,0.1461331,2665.9,2665.8,0.07489406]
[1739206164069,0.1461331,2665.9,2665.7,4.52855]
[1739206164267,0.1461331,2665.9,2665.8,3.82610406]
[1739206164607,0.1461331,2665.9,2665.8,4.60330406]
[1739206164810,0.1461331,2665.9,2665.8,4.65581177]
[1739206165113,0.1461331,2665.9,2665.8,8.05196035]
[1739206165269,0.1461331,2665.9,2665.8,8.01446071]
[1739206166102,3.1e-06,2665.9,2665.8,8.01446071]
[1739206166270,3.1e-06,2665.9,2665.8,20.28944279]
[1739206166479,7.45271828,2667.6,2665.9,3.015]
[1739206166677,3.74892,2667.5,2666.9,4.52675]
[1739206166881,3.70395828,2667.6,2667.0,0.07251295]
[1739206167114,3.70395828,2667.6,2667.1,3.74926]
[1739206167301,3.0,2667.5,2667.2,0.0722947]
[1739206167498,0.8181,2667.6,2667.2,0.0722947]
[1739206167670,3.7487,2667.6,2667.2,0.0722947]
[1739206168269,3.70395828,2667.9,2667.3,3.74909]
[1739206168473,3.70395828,2667.9,2667.4,0.07207649]
[1739206168674,3.70395828,2667.9,2667.4,3.82099649]
[1739206168969,7.45223828,2667.9,2667.4,0.07207649]
[1739206169217,3.74882,2667.5,2667.4,0.07207649]
[1739206169601,3.74898,2667.4,2666.9,0.7772]
[1739206169885,3.74898,2667.4,2667.0,0.07228967]
[1739206170085,7.49807,2667.4,2667.0,0.07228967]
[1739206170367,3.74925,2667.2,2667.0,0.07228967]
[1739206170688,7.49808,2667.4,2667.0,0.07228967]
[1739206170889,3.74899,2667.4,2667.0,0.07228967]
[1739206171770,6.63462828,2667.6,2667.0,0.07228967]
[1739206171967,3.74877,2667.6,2667.0,3.82172967]
[1739206172690,3.74877,2667.6,2667.0,7.57116967]
[1739206173017,6.74847,2667.8,2667.0,3.82172967]
[1739206173182,3.74872,2667.6,2667.0,7.57116967]
[1739206173390,3.74872,2667.6,2667.0,3.82172967]
[1739206173921,3.74899,2667.4,2667.0,0.07228967]
[1739206174230,3.74856,2667.7,2667.2,3.74924]
[1739206174521,7.49719,2667.7,2667.2,3.74924]
[1739206174728,3.74856,2667.7,2667.3,0.07201192]
[1739206174990,7.45230828,2667.9,2666.9,0.7772]
[1739206175149,3.74856,2667.7,2667.4,0.07190281]
[1739206175449,3.74872,2667.6,2667.1,3.74937]
[1739206175599,7.49724,2667.7,2667.5,0.07179372]
[1739206175798,3.74856,2667.7,2667.0,3.74943]
[1739206176112,3.74841,2667.8,2667.1,3.74928]
[1739206176307,3.74871,2667.6,2667.2,0.07212103]
[1739206177201,3.74871,2667.6,2667.1,3.7493]
[1739206177397,3.74884,2667.5,2667.3,0.07201192]
[1739206177638,3.74884,2667.5,2667.2,0.07212103]
[1739206177841,3.74884,2667.5,2667.4,0.07190281]
[1739206178002,3.74884,2667.5,2667.3,0.07201192]
[1739206178003,3.74896,2667.4,2667.3,0.07201192]
[1739206178205,3.74896,2667.4,2666.3,4.5277]
[1739206178206,0.55,2667.2,2666.3,4.5277]
[1739206178408,3.74993,2666.8,2666.3,4.5277]
[1739206178607,2.88585828,2666.9,2666.4,3.8205898]
[1739206178812,6.63555828,2666.9,2666.4,3.8205898]
[1739206179342,3.7497,2666.9,2666.4,3.8206498]
[1739206179541,3.7497,2666.9,2666.4,0.0702898]
[1739206179756,3.74975,2666.9,2666.4,0.0702898]
[1739206180051,3.74981,2666.8,2666.4,0.0702898]
[1739206180552,3.75004,2666.7,2666.4,0.0702898]
[1739206180724,3.74982,2666.8,2666.4,0.0702898]
[1739206180906,3.74981,2666.8,2666.4,0.0702898]
[1739206181330,3.74991,2666.8,2666.4,0.0702898]
[1739206181549,3.74976,2666.9,2666.4,0.0702898]
[1739206181743,3.74976,2666.9,2666.4,3.8206398]
[1739206181908,7.49892,2667.1,2666.5,3.75009]
[1739206182109,6.63514828,2667.2,2666.7,0.7772]
[1739206182505,3.74946,2667.1,2666.8,0.07003612]
[1739206182846,3.74914,2667.3,2666.7,0.7772]
[1739206183047,3.74928,2667.2,2666.7,4.52713]
[1739206183216,6.63513828,2667.2,2666.8,0.07003612]
[1739206183421,3.74955,2667.0,2666.8,0.07003612]
[1739206183620,7.49916,2667.0,2666.7,0.7772]
[1739206183842,3.74953,2667.0,2666.9,0.06992698]
[1739206184049,6.63552828,2666.9,2666.8,0.07003612]
[1739206184355,6.63552828,2666.9,2666.8,0.06995547]
[1739206184714,3.74992,2666.8,2666.3,0.7772]
[1739206184911,3.74991,2666.8,2666.4,0.07045107]
[1739206185556,3.74981,2666.8,2666.4,0.07045107]
[1739206185911,6.63555828,2666.9,2666.4,3.82075107]
[1739206186110,6.63555828,2666.9,2666.4,3.82071107]
[1739206186529,2.88585828,2666.9,2666.4,3.82071107]
[1739206186771,4.56759,2667.1,2666.6,3.75003]
[1739206186981,8.3171,2667.1,2666.5,3.75012]
[1739206187132,3.74956,2667.0,2666.7,0.07015769]
[1739206187333,8.31711,2667.1,2666.5,3.75012]
[1739206187569,8.31711,2667.1,2666.6,0.07026685]
[1739206187768,3.74968,2666.9,2666.6,0.07026685]
[1739206187975,3.74954,2667.0,2666.6,0.07026685]
[1739206188853,4.56756,2667.1,2666.6,0.07026685]
[1739206189053,3.74957,2667.0,2666.6,0.07026685]
[1739206189242,3.74971,2666.9,2666.6,0.07026685]
[1739206189444,4.56759,2667.1,2666.5,7.50025]
[1739206189643,3.74956,2667.0,2666.7,0.07015769]
[1739206189936,3.74956,2667.0,2666.8,0.07004853]
[1739206190274,3.74968,2666.9,2666.5,3.75011]
[1739206190429,3.74968,2666.9,2666.4,3.75035]
[1739206190633,3.74953,2667.0,2666.5,3.7502]
[1739206192575,3.74953,2667.0,2666.5,3.75015]
[1739206193456,3.74953,2667.0,2666.6,0.783]
[1739206193649,6.63510828,2667.2,2666.6,0.783]
[1739206193873,3.74939,2667.1,2666.6,4.53299]
[1739206194057,6.63510828,2667.2,2666.6,4.53299]
[1739206194256,6.63510828,2667.2,2666.7,3.74983]
[1739206194600,2.88585828,2667.2,2666.7,3.74983]
[1739206194769,3.74916,2667.3,2666.8,3.74973]
[1739206195090,3.7494,2667.1,2666.7,3.74983]
[1739206195294,6.74914,2667.3,2666.7,3.74983]
[1739206195504,3.74925,2667.2,2666.7,3.74983]
[1739206195666,3.74942,2667.1,2666.7,3.74983]
[1739206196000,3.74925,2667.2,2666.7,3.74983]
[1739206196001,3.74925,2667.2,2666.7,7.4997]
[1739206196168,6.74918,2667.3,2666.8,3.74974]
[1739206196564,3.74927,2667.2,2666.7,3.74983]
[1739206196802,3.0,2667.4,2666.7,3.74983]
[1739206197105,3.74917,2667.3,2666.8,3.74978]
[1739206197255,3.7491,2667.3,2666.7,3.74983]
[1739206197455,3.7491,2667.3,2666.7,7.4997]
[1739206197953,3.7491,2667.3,2666.8,3.74975]
[1739206198394,10.49818,2667.4,2666.9,3.74965]
[1739206198692,6.74904,2667.4,2666.9,3.74965]
[1739206199098,10.49811,2667.4,2667.0,0.783]
[1739206199405,6.74904,2667.4,2667.0,0.783]
[1739206200388,3.74976,2666.9,2666.7,0.7875]
[1739206200603,3.74954,2667.0,2666.7,0.7875]
[1739206201597,0.7785,2667.5,2666.7,0.7875]
[1739206201598,3.66435828,2667.5,2666.7,0.7875]
[1739206201761,3.66435828,2667.5,2667.0,3.74939]
[1739206201762,2.88585828,2667.5,2667.0,3.74939]
[1739206201960,2.88585828,2667.5,2667.1,0.7875]
[1739206202171,2.88585828,2667.5,2667.1,4.53682]
[1739206202369,0.8155,2667.7,2667.1,0.82499184]
[1739206202571,0.8155,2668.0,2667.5,3.7488]
[1739206202757,6.63393828,2668.1,2667.6,4.53617]
[1739206203818,3.74833,2667.9,2667.6,0.7875]
[1739206204115,3.74867,2667.7,2667.3,0.7875]
[1739206204270,6.63434828,2667.8,2667.3,4.53655]
[1739206204478,6.63434828,2667.8,2667.4,3.74896]
[1739206204703,6.63434828,2667.8,2667.3,4.5366]
[1739206205023,6.63434828,2667.8,2667.4,0.06926662]
[1739206205298,3.74854,2667.7,2667.4,0.06926662]
[1739206205922,7.44984828,2667.8,2667.4,0.06926662]
[1739206206201,2.88585828,2668.1,2667.4,3.81822662]
[1739206206409,3.74821,2668.0,2667.4,3.81822662]
[1739206206567,4.5639,2667.9,2667.4,0.06926662]
[1739206206768,8.31229,2667.9,2667.4,3.81821662]
[1739206207068,3.74877,2667.6,2667.4,0.06926662]
[1739206207264,3.74882,2667.5,2667.4,0.06926662]
[1739206207698,3.74882,2667.5,2667.1,0.7875]
[1739206207911,3.7487,2667.6,2667.4,0.0691271]
[1739206208112,6.63436828,2667.8,2667.1,4.53685]
[1739206208113,2.88585828,2667.8,2667.2,3.74913]
[1739206208415,2.88585828,2667.8,2667.2,3.74918]
[1739206208610,2.88585828,2667.8,2667.3,3.81827621]
[1739206208819,6.63428828,2667.8,2667.3,3.81827621]
[1739206209032,10.38280828,2667.8,2667.3,3.81827621]
[1739206209380,3.74858,2667.7,2667.3,0.06923621]
[1739206209595,3.74858,2667.7,2667.1,0.7875]
[1739206209780,3.74858,2667.7,2667.2,0.06934532]
[1739206210005,6.63428828,2667.8,2667.2,3.81848532]
[1739206210320,2.88585828,2667.8,2667.2,3.81848532]
[1739206210614,3.74855,2667.7,2667.2,3.81848532]
[1739206211005,3.74892,2667.5,2667.2,0.06934532]
[1739206211211,3.74896,2667.4,2667.2,0.06934532]
[1739206211723,6.63477828,2667.5,2667.2,0.06934532]
[1739206212391,3.74904,2667.4,2667.2,0.06934532]
[1739206212601,10.38372828,2667.5,2667.2,0.06934532]
[1739206212938,3.74863,2667.7,2667.2,3.81855532]
[1739206213297,3.74863,2667.7,2667.2,0.06934532]
[1739206213497,3.74905,2667.4,2667.2,0.06934532]
[1739206214242,2.88585828,2667.8,2667.2,0.06934532]
[1739206214243,3.74874,2667.6,2667.2,0.06934532]
[1739206214387,3.74899,2667.4,2667.2,0.06934532]
[1739206214593,3.7491,2667.3,2667.2,0.06934532]
[1739206214837,3.7494,2667.1,2666.8,0.8136]
[1739206215142,0.7773,2667.4,2666.5,3.99893]
[1739206215143,3.74969,2666.9,2666.6,0.8136]
[1739206216233,3.74946,2667.1,2666.6,0.8136]
[1739206216452,6.63518828,2667.2,2666.7,3.74993]
[1739206216742,2.88585828,2667.2,2666.6,0.8136]
[1739206216891,3.74955,2667.0,2666.6,0.8136]
[1739206217293,3.74969,2666.9,2666.6,0.8136]
[1739206217552,3.74967,2666.9,2666.6,0.8136]
[1739206217694,6.63518828,2667.2,2666.6,0.8136]
[1739206217893,6.63518828,2667.2,2666.7,3.74993]
[1739206218132,3.0,2667.3,2666.7,3.74993]
[1739206218330,3.74911,2667.3,2666.8,3.7497]
[1739206219020,0.7773,2667.6,2666.8,3.7497]
[1739206219021,0.7773,2667.6,2667.3,3.74901]
[1739206219342,6.63385828,2668.1,2667.6,3.74861]
[1739206219536,3.74815,2668.0,2667.5,3.74878]
[1739206219694,10.38193828,2668.1,2667.5,3.74878]
[1739206220035,10.38193828,2668.1,2667.6,0.0689678]
[1739206220247,6.63385828,2668.1,2667.7,0.8136]
[1739206220558,2.88585828,2668.1,2667.8,0.06874965]
[1739206221507,6.63391828,2668.1,2667.8,0.06874965]
[1739206223059,2.88585828,2668.1,2667.8,0.06874965]
[1739206223216,2.89085828,2668.4,2667.8,0.06874965]
[1739206223421,0.005,2668.4,2668.1,0.8136]
[1739206223716,0.005,2668.4,2668.2,0.06831344]
[1739206223916,3.75258,2668.4,2668.2,0.06831344]
[1739206224273,0.005,2668.4,2668.2,0.06831344]
[1739206224476,3.7477,2668.3,2668.2,0.06831344]
[1739206225466,0.005,2668.4,2668.2,0.06831344]
[1739206225766,3.7477,2668.3,2668.2,0.06831344]
[1739206225973,3.7477,2668.3,2667.7,0.8136]
[1739206226258,3.74799,2668.1,2667.8,0.06850786]
[1739206226571,0.005,2668.4,2668.2,0.8136]
[1739206226775,0.005,2668.4,2668.3,0.06796263]
[1739206226941,0.005,2668.4,2668.2,4.56143]
[1739206227261,0.005,2668.4,2668.3,3.85293494]
[1739206227418,0.005,2668.4,2668.3,3.81546114]
[1739206228293,0.005,2668.4,2668.3,4.66653277]
[1739206228476,0.005,2668.4,2668.3,4.62906114]
[1739206229052,0.005,2668.4,2668.3,0.88136114]
[1739206229489,3.75256,2668.4,2668.3,0.06776114]
[1739206229858,3.75256,2668.4,2668.0,0.7878]
[1739206230061,3.75256,2668.4,2668.3,0.06760621]
[1739206230300,0.005,2668.4,2668.0,0.7878]
[1739206230607,3.75266,2668.4,2668.0,0.7878]
[1739206230765,3.67445828,2668.4,2668.1,0.06782428]
[1739206231094,3.74797,2668.2,2667.7,3.74854]
[1739206231563,3.7477,2668.3,2667.6,0.7878]
[1739206231764,3.74862,2667.7,2667.2,0.7878]
[1739206231990,3.74869,2667.6,2667.2,0.7878]
[1739206232352,0.7836,2668.0,2667.0,0.7878]
[1739206232353,3.74892,2667.5,2667.0,0.7878]
[1739206232580,3.74913,2667.3,2667.0,0.7878]
[1739206232780,4.53252,2667.5,2667.0,0.7878]
[1739206232986,7.41837828,2667.5,2666.9,3.74966]
[1739206233159,3.66945828,2667.5,2667.0,3.74952]
[1739206233358,3.66945828,2667.5,2667.1,3.74938]
[1739206233862,0.7836,2667.5,2667.1,3.74938]
[1739206234067,3.74872,2667.6,2667.1,3.74938]
[1739206234669,3.74872,2667.6,2666.9,3.74966]
[1739206234980,3.74872,2667.6,2667.0,0.11748863]
[1739206235214,3.74862,2667.7,2667.0,0.11748863]
[1739206235378,3.74889,2667.5,2667.0,0.11748863]
[1739206235955,3.74914,2667.3,2667.0,0.11748863]
[1739206236158,3.74889,2667.5,2666.8,4.53756]
[1739206236452,3.74889,2667.5,2666.9,0.1175842]
[1739206236682,3.749,2667.4,2666.9,0.1175842]
[1739206236854,3.74889,2667.5,2666.9,3.8671542]
[1739206237061,3.74907,2667.4,2666.9,0.1175842]
[1739206237291,3.74907,2667.4,2666.9,3.8672442]
[1739206237598,3.74861,2667.7,2666.9,0.1175842]
[1739206237786,3.74861,2667.7,2667.1,3.74929]
[1739206237988,3.74861,2667.7,2667.2,0.11727278]
[1739206238186,3.74861,2667.7,2667.2,0.90507278]
[1739206238771,6.74841,2667.8,2667.2,0.90507278]
[1739206239069,6.74851,2667.8,2667.3,3.74909]
[1739206239477,3.74833,2667.9,2667.4,3.86599078]
[1739206239852,3.74833,2667.9,2667.4,0.11705078]
[1739206241521,5.28575653,2668.3,2667.6,0.7878]
[1739206241805,3.74788,2668.2,2667.7,3.86515785]
[1739206241986,6.63843828,2668.4,2667.7,0.11671785]
[1739206242299,10.38612828,2668.4,2667.8,3.74827]
[1739206242505,6.63843828,2668.4,2667.8,3.74827]
[1739206242675,3.74774,2668.3,2667.9,0.11651134]
[1739206243060,3.74791,2668.2,2667.9,0.11651134]
[1739206243464,0.7836,2668.3,2667.6,0.7878]
[1739206243763,3.74852,2667.8,2667.6,0.7878]
[1739206244214,3.7482,2668.0,2667.6,0.7878]
[1739206244215,3.74828,2667.9,2667.6,0.7878]
[1739206244392,3.7482,2668.0,2667.6,0.7878]
[1739206244559,3.74835,2667.9,2667.6,0.7878]
[1739206244764,3.7482,2668.0,2667.6,0.7878]
[1739206244995,3.74789,2668.2,2667.6,4.53647]
[1739206245197,3.74789,2668.2,2667.6,4.5364]
[1739206245497,4.5313,2668.3,2667.8,3.74838]
[1739206246000,6.63850828,2668.4,2668.2,3.74782]
[1739206246001,0.005,2668.4,2668.2,3.74782]
[1739206246296,0.005,2668.4,2667.8,0.8014]
[1739206246517,0.005,2668.4,2668.0,3.74802]
[1739206246870,0.005,2668.4,2668.1,3.74788]
[1739206247076,0.005,2668.4,2668.1,0.8014]
[1739206247292,0.005,2668.4,2668.1,4.54938]
[1739206247611,0.005,2668.4,2668.3,3.7477]
[1739206248114,0.005,2668.4,2668.3,4.5491]
[1739206250262,0.005,2668.4,2668.3,4.66494511]
[1739206250400,1e-05,2668.4,2668.3,16.42994511]
[1739206250572,1e-05,2668.4,2668.3,17.07994511]
[1739206250774,1e-05,2668.4,2668.3,20.82994511]
[1739206251931,3.1e-06,2668.6,2668.5,7.54882]
[1739206252215,3.1e-06,2668.6,2668.5,7.67176724]
[1739206253895,3.1e-06,2668.6,2668.5,7.66426724]
[1739206254436,2.0,2669.0,2668.9,3.74686]
[1739206254437,0.12664,2669.0,2668.9,3.74686]
[1739206254597,0.12664,2669.0,2668.9,19.22157279]
[1739206254797,0.12664,2669.0,2668.9,16.41258112]
[1739206255001,0.12664,2669.0,2668.9,16.42758112]
[1739206255595,0.12664,2669.0,2668.9,16.41258112]
[1739206258718,0.12664,2669.0,2668.9,9.66572112]
[1739206259600,0.12664,2669.0,2668.9,13.41258112]
[1739206260031,0.0168006,2669.7,2669.6,3.74587]
[1739206260203,0.0168006,2669.7,2668.9,8.87182112]
[1739206260400,0.8024,2669.6,2669.1,3.74648]
[1739206260609,0.8024,2669.6,2669.2,0.11397313]
[1739206260798,3.68825828,2669.6,2669.2,0.11397313]
[1739206260996,3.74625,2669.4,2668.9,3.74683]
[1739206261198,3.74601,2669.5,2669.0,0.11011566]
[1739206261411,7.49214,2669.5,2669.0,0.11011566]
[1739206261638,3.74623,2669.4,2669.0,0.11011566]
[1739206261819,7.43420828,2669.6,2669.0,3.85672566]
[1739206262014,7.43420828,2669.6,2669.1,3.7465]
[1739206262229,3.68825828,2669.6,2669.2,3.85625396]
[1739206262428,3.68825828,2669.6,2669.3,3.74626]
[1739206262649,3.68825828,2669.6,2669.2,3.85631396]
[1739206262942,3.74605,2669.5,2669.4,0.10967229]
[1739206263106,7.43420828,2669.6,2669.3,0.10978312]
[1739206263309,7.43420828,2669.6,2669.4,0.10967229]
[1739206263742,7.43413828,2669.6,2669.1,3.7465]
[1739206264044,0.8024,2669.6,2669.4,3.74608]
[1739206264346,0.0168006,2669.7,2669.4,3.74608]
[1739206264547,0.0168006,2669.7,2669.5,0.10956147]
[1739206264929,0.0168006,2669.7,2669.6,3.74587]
[1739206265458,0.0168006,2669.7,2669.6,3.85532065]
[1739206266713,0.0168006,2669.7,2669.6,4.64912065]
[1739206266914,0.0168006,2669.7,2669.6,0.10945065]
[1739206267243,0.7859,2669.6,2669.3,3.74629]
[1739206267423,0.7859,2669.6,2669.0,9.5438]
[1739206267628,7.41764828,2669.6,2668.7,0.7938]
[1739206267954,3.74603,2669.5,2669.0,3.74662]
[1739206268106,11.16363828,2669.6,2669.0,3.74662]
[1739206268449,7.41764828,2669.6,2669.0,3.74662]
[1739206268645,3.74612,2669.5,2669.0,3.74662]
[1739206269154,3.74616,2669.4,2669.0,3.74662]
[1739206269325,7.41764828,2669.6,2669.0,3.74662]
[1739206269856,7.41764828,2669.6,2668.7,0.7938]
[1739206269857,7.41764828,2669.6,2669.1,3.74655]
[1739206270019,3.74603,2669.5,2669.0,3.74672]
[1739206270225,7.41764828,2669.6,2668.9,3.7468]
[1739206270427,3.74616,2669.4,2668.9,3.7468]
[1739206270821,3.74616,2669.4,2668.9,7.49355]
[1739206271158,3.74616,2669.4,2668.9,3.74675]
[1739206273662,3.74616,2669.4,2668.7,4.54083]
[1739206273967,3.7464,2669.3,2668.8,3.74697]
[1739206274321,3.7463,2669.3,2668.9,3.74685]
[1739206274554,3.7463,2669.3,2668.8,3.74699]
[1739206275372,3.74679,2669.0,2668.5,0.7786]
[1739206275669,3.74693,2668.9,2668.5,0.7786]
[1739206275844,3.74725,2668.7,2668.2,4.52641]
[1739206276048,4.51129,2668.9,2668.3,3.74763]
[1739206276254,3.74708,2668.8,2668.3,3.74763]
[1739206276426,4.51129,2668.9,2668.2,0.7786]
[1739206276625,0.7643,2668.9,2668.3,3.7477]
[1739206276826,0.7643,2668.9,2668.4,3.74747]
[1739206277383,0.7643,2668.6,2668.1,0.39581514]
[1739206277676,4.51167,2668.6,2668.1,0.39581514]
[1739206277882,0.7643,2668.6,2668.2,3.74781]
[1739206278536,0.7643,2668.6,2668.2,3.74776]
[1739206278749,0.7643,2668.8,2668.4,3.74753]
[1739206279480,0.7643,2668.8,2668.6,3.74718]
[1739206279694,0.7643,2669.2,2668.8,3.74689]
[1739206279866,0.7643,2669.2,2668.7,3.74708]
[1739206280167,4.51074,2669.2,2668.9,0.10630169]
[1739206280369,0.7643,2669.2,2668.8,3.85340256]
[1739206280525,0.7643,2669.2,2669.0,0.10619083]
[1739206280721,0.7643,2669.2,2668.9,0.10630169]
[1739206281033,0.7643,2669.4,2669.0,3.85290083]
[1739206281230,0.7643,2669.4,2669.2,3.74634]